fUSD/lending_fUSD_20240216
["ID","MTS","AMOUNT","RATE_DAILY","PERIOD"]
[314197567,1708066241092,-500.0,0.00041095,30]
[314197568,1708066241101,-1185.71,0.00041095,7]
[314197569,1708066241110,-500.0,0.00041095,30]
[314197570,1708066241119,-500.0,0.00041095,30]
[314197571,1708066241128,-37.46830553,0.00041095,30]
[314197572,1708066241186,-462.53169447,0.00041095,30]
[314197573,1708066241195,-471.88559006,0.00041095,30]
[314197574,1708066241237,-28.11440994,0.00041095,30]
[314197575,1708066241246,-364.75222526,0.00041095,30]
[314197576,1708066241258,-135.24777474,0.00041095,30]
[314197577,1708066241271,-215.87947571,0.00041095,30]
[314197578,1708066241283,-284.12052429,0.00041095,30]
[314197579,1708066241292,-500.0,0.00041095,30]
[314197580,1708066241301,-500.0,0.00041095,30]
[314197581,1708066241310,-500.0,0.00041095,30]
[314197582,1708066241320,-695.48,0.00041095,30]
[314197583,1708066241329,-515.69390838,0.00041095,30]
[314197584,1708066241338,-151.22085632,0.00041095,30]
[314197585,1708066241625,-348.77914368,0.00041095,30]
[314197586,1708066241634,-500.0,0.00041095,30]
[314197587,1708066241644,-500.0,0.00041095,30]
[314197588,1708066241653,-500.0,0.00041095,30]
[314197589,1708066241662,-500.0,0.00041095,30]
[314197590,1708066241671,-500.0,0.00041095,30]
[314197591,1708066241681,-500.0,0.00041095,30]
[314197592,1708066241690,-497.85388272,0.00041095,30]
[314197593,1708066241700,-500.0,0.00041095,30]
[314197594,1708066241709,-500.0,0.00041095,2]
[314197595,1708066241718,-500.0,0.00041095,30]
[314197596,1708066241727,-500.0,0.00041095,30]
[314197597,1708066241736,-500.0,0.00041095,30]
[314197599,1708066241745,-500.0,0.00041095,30]
[314197600,1708066241754,-500.0,0.00041095,30]
[314197602,1708066241763,-511.44831301,0.00041095,30]
[314197604,1708066241772,-500.0,0.00041095,30]
[314197605,1708066241781,-500.0,0.00041095,30]
[314197606,1708066241790,-500.0,0.00041095,30]
[314197607,1708066241799,-500.0,0.00041095,30]
[314197608,1708066241808,-500.0,0.00041095,30]
[314197609,1708066241821,-500.0,0.00041095,30]
[314197610,1708066241831,-639.94439285,0.00041095,30]
[314197611,1708066241840,-500.0,0.00041095,30]
[314197612,1708066241849,-500.0,0.00041095,30]
[314197613,1708066241858,-500.0,0.00041095,30]
[314197614,1708066241868,-151.0,0.00041095,7]
[314197615,1708066241877,-500.0,0.00041095,30]
[314197616,1708066241890,-500.0,0.00041095,30]
[314197617,1708066241900,-500.0,0.00041095,30]
[314197618,1708066241909,-500.0,0.00041095,30]
[314197619,1708066241919,-500.0,0.00041095,30]
[314197620,1708066241928,-500.0,0.00041095,30]
[314197621,1708066241938,-500.0,0.00041095,30]
[314197622,1708066241947,-500.0,0.00041095,30]
[314197623,1708066241957,-150.0,0.00041095,7]
[314197624,1708066241968,-500.0,0.00041095,30]
[314197625,1708066241977,-527.74780258,0.00041095,30]
[314197626,1708066241987,-500.0,0.00041095,30]
[314197627,1708066241997,-500.0,0.00041095,30]
[314197628,1708066242007,-500.0,0.00041095,30]
[314197629,1708066242015,-500.0,0.00041095,30]
[314197630,1708066242025,-500.0,0.00041095,30]
[314197631,1708066242034,-500.0,0.00041095,30]
[314197632,1708066242044,-500.0,0.00041095,30]
[314197633,1708066242053,-150.0,0.00041095,7]
[314197634,1708066242063,-534.47191907,0.00041095,30]
[314197635,1708066242072,-500.0,0.00041095,30]
[314197636,1708066242082,-500.0,0.00041095,30]
[314197637,1708066242092,-500.0,0.00041095,30]
[314197638,1708066242101,-500.0,0.00041095,30]
[314197639,1708066242111,-500.0,0.00041095,30]
[314197640,1708066242120,-500.0,0.00041095,30]
[314197641,1708066242129,-500.0,0.00041095,30]
[314197642,1708066242139,-500.0,0.00041095,30]
[314197643,1708066242148,-500.0,0.00041095,30]
[314197644,1708066242157,-500.0,0.00041095,30]
[314197645,1708066242167,-500.0,0.00041095,30]
[314197646,1708066242176,-500.0,0.00041095,30]
[314197647,1708066242185,-1000.0,0.00041095,120]
[314197648,1708066242194,-625.2,0.00041095,30]
[314197649,1708066242204,-500.0,0.00041095,30]
[314197650,1708066242213,-500.0,0.00041095,30]
[314197651,1708066242223,-538.31849174,0.00041095,30]
[314197652,1708066242232,-500.0,0.00041095,30]
[314197653,1708066242241,-545.97398355,0.00041095,30]
[314197654,1708066242250,-500.0,0.00041095,30]
[314197655,1708066242260,-500.0,0.00041095,2]
[314197656,1708066242269,-500.0,0.00041095,30]
[314197657,1708066242279,-500.0,0.00041095,30]
[314197658,1708066242288,-500.0,0.00041095,30]
[314197659,1708066242298,-500.0,0.00041095,30]
[314197660,1708066242307,-500.84937232,0.00041095,2]
[314197661,1708066242317,-500.0,0.00041095,30]
[314197662,1708066242326,-500.0,0.00041095,30]
[314197663,1708066242336,-509.75700578,0.00041095,30]
[314197664,1708066242345,-500.0,0.00041095,30]
[314197665,1708066242354,-500.0,0.00041095,30]
[314197666,1708066242363,-500.0,0.00041095,2]
[314197667,1708066242373,-500.0,0.00041095,30]
[314197668,1708066242382,-500.0,0.00041095,30]
[314197669,1708066242392,-522.29857171,0.00041095,30]
[314197670,1708066242401,-500.0,0.00041095,30]
[314197671,1708066242411,-500.0,0.00041095,30]
[314197672,1708066242420,-203.82869721,0.00041096,30]
[314197673,1708066242429,-152.31,0.000411,4]
[314197674,1708066242439,-152.31,0.000411,4]
[314197675,1708066242448,-152.31,0.000411,4]
[314197676,1708066242458,-152.31,0.000411,4]
[314197677,1708066242468,-152.31,0.000411,4]
[314197678,1708066242478,-152.31,0.000411,4]
[314197679,1708066242487,-152.31,0.000411,4]
[314197680,1708066242496,-152.31,0.000411,4]
[314197681,1708066242506,-152.31,0.000411,4]
[314197682,1708066242515,-152.31,0.000411,4]
[314197683,1708066242525,-152.31,0.000411,4]
[314197684,1708066242534,-152.31,0.000411,4]
[314197685,1708066242543,-152.31,0.000411,4]
[314197686,1708066242552,-152.31,0.000411,4]
[314197687,1708066242561,-152.31,0.000411,4]
[314197688,1708066242571,-152.31,0.000411,4]
[314197689,1708066242580,-152.31,0.000411,4]
[314197690,1708066242590,-152.31,0.000411,4]
[314197691,1708066242599,-553.06,0.00041128,2]
[314197692,1708066242608,-258.77,0.00041137,30]
[314197693,1708066242618,-152.59450357,0.00041196,30]
[314197694,1708066242636,-258.77,0.00041274,30]
[314197695,1708066242649,-156.7565475,0.00041282,2]
[314197696,1708066242659,-386.91,0.00041326,2]
[314197697,1708066242668,-200.0,0.00041358,15]
[314197698,1708066242678,-64042.59516046,0.00041359,7]
[314197699,1708066242694,-8094.10953144,0.00041359,7]
[314197700,1708066242706,-5237.29745642,0.00041359,7]
[314197701,1708066243317,-898.17017497,0.00041359,7]
[314197708,1708066246223,-23574.59894927,0.00035,4]
[314197709,1708066246233,-248.46344685,0.00041095,30]
[314197710,1708066246243,-500.0,0.00041095,30]
[314197711,1708066246253,-500.0,0.00041095,30]
[314197712,1708066246262,-10455.94662071,0.00041359,7]
[314197713,1708066246272,-83532.31408476,0.00041368,2]
[314197714,1708066246581,-17103.15430052,0.00041368,2]
[314197715,1708066246599,-600.96064608,0.00041368,2]
[314197716,1708066246615,-1452.57759145,0.00041368,2]
[314197717,1708066246627,-4782.01463992,0.00041368,2]
[314197718,1708066270045,10584.23583999,0.00023,2]
[314197719,1708066270069,20000.0,0.00023,2]
[314197720,1708066270093,20000.0,0.00023,2]
[314197721,1708066270116,20000.0,0.00023,2]
[314197722,1708066270139,20000.0,0.00023,2]
[314197723,1708066270162,20000.0,0.00023,2]
[314197724,1708066270184,20000.0,0.00023,2]
[314197725,1708066270206,20000.0,0.00023,2]
[314197726,1708066270230,20000.0,0.00023,2]
[314197727,1708066270251,20000.0,0.00023,2]
[314197728,1708066270272,20000.0,0.00023,2]
[314197729,1708066270301,20000.0,0.00023,2]
[314197730,1708066270329,20000.0,0.00023,2]
[314197731,1708066270351,20000.0,0.00023,2]
[314197732,1708066270379,4000000.0,0.00023,2]
[314197733,1708066270406,105000.0,0.00023,2]
[314197734,1708066270429,1784296.21787539,0.00023,2]
[314197736,1708066448110,1894.94656345,0.0002299,2]
[314197737,1708066466648,15930.86266301,0.000232,2]
[314197757,1708067432235,-1250.0,0.00025,3]
[314197758,1708067432245,-1300.0,0.00027,3]
[314197759,1708067432254,-5212.25089655,0.000272,2]
[314197760,1708067432266,-156.7565475,0.000318,2]
[314197761,1708067432276,-1500.0,0.000319,4]
[314197762,1708067432285,-2833.5835179,0.000319,2]
[314197763,1708067432294,-205.0,0.00032236,2]
[314197764,1708067432305,-557.04795219,0.00033235,2]
[314197765,1708067432314,-298.51,0.00035122,2]
[314197766,1708067432325,-845.85417718,0.00035164,10]
[314197767,1708067432334,-250.16596599,0.0003517,10]
[314197768,1708067432343,-499.99,0.0003517,2]
[314197769,1708067432353,-171.49,0.00035309,2]
[314197770,1708067432362,-206.76,0.00035743,2]
[314197771,1708067432372,-427.36,0.00035827,2]
[314197772,1708067432381,-150.0,0.00035852,2]
[314197773,1708067432391,-928.62933255,0.00036,2]
[314197774,1708067432400,-5925.00897403,0.00036,10]
[314197775,1708067432409,-1477.24394231,0.00036,2]
[314197776,1708067432418,-250.0,0.0003613,111]
[314197777,1708067432427,-876.6,0.00036293,2]
[314197778,1708067432436,-179.21,0.00036336,2]
[314197779,1708067432445,-291.94517868,0.00036425,2]
[314197780,1708067432454,-7555.51772894,0.00036464,2]
[314197781,1708067432464,-693.03473043,0.00036464,2]
[314197782,1708067432473,-800.0,0.00036466,2]
[314197783,1708067432484,-174861.65350721,0.00036524,2]
[314197784,1708067432494,-2000.0,0.00036525,2]
[314197785,1708067432503,-155.0,0.00036561,4]
[314197786,1708067432512,-14947.51546233,0.00036563,2]
[314197787,1708067432525,-2135.24835581,0.00036563,2]
[314197788,1708067432537,-4303.44005827,0.00036563,2]
[314197789,1708067432549,-2513.79612359,0.00036563,2]
[314197790,1708067432558,-215.48,0.00036659,2]
[314197791,1708067432568,-250.0,0.00036781,2]
[314197792,1708067432577,-179.21,0.0003681,2]
[314197793,1708067432586,-205.0,0.00036864,11]
[314197794,1708067432596,-538.08,0.00036961,2]
[314197795,1708067432605,-693.03473041,0.00037182,2]
[314197796,1708067432615,-179.21,0.00037283,2]
[314197797,1708067432625,-298.51,0.00037386,2]
[314197798,1708067432634,-206.76,0.0003753,2]
[314197799,1708067432643,-291.94517868,0.00037542,2]
[314197800,1708067432654,-192.97,0.0003762,2]
[314197801,1708067432663,-504.79,0.0003762,2]
[314197802,1708067432672,-1456.21396732,0.00037624,2]
[314197803,1708067432685,-6099.30376156,0.00037624,2]
[314197804,1708067432694,-179.21,0.00037757,2]
[314197805,1708067432704,-1669.4157,0.00037798,2]
[314197806,1708067432713,-1000.0,0.00037798,2]
[314197807,1708067432723,-37693.7776,0.00037798,2]
[314197808,1708067432733,-478.1011,0.00037798,2]
[314197809,1708067432744,-7156.33507316,0.00037899,2]
[314197810,1708067432758,-333.21853354,0.00037899,2]
[314197811,1708067432770,-2886.58443646,0.00037899,2]
[314197812,1708067432782,-12115.28653716,0.00037899,2]
[314197813,1708067432794,-562.43544538,0.00037899,2]
[314197814,1708067432805,-1101.33165979,0.00037899,2]
[314197815,1708067432817,-271.29633934,0.00037899,2]
[314197816,1708067432830,-385.33323618,0.00037899,2]
[314197817,1708067432841,-3751.69749833,0.00037899,2]
[314197818,1708067432853,-4617.46049009,0.00037899,2]
[314197819,1708067432865,-5906.63526208,0.00037899,2]
[314197820,1708067434431,-492.21325743,0.00037899,2]
[314197821,1708067434444,-627.62684945,0.00037899,2]
[314197826,1708067438241,-4790.82447192,0.00037899,2]
[314197827,1708067438253,-285.49172499,0.00037899,2]
[314197828,1708067438266,-553.19678644,0.00037899,2]
[314197829,1708067438278,-54163.03239826,0.00037899,2]
[314197830,1708067438287,-1675.00535578,0.000379,2]
[314197831,1708067438296,-693.03473041,0.000379,2]
[314197832,1708067438306,-1297.82338428,0.00037999,2]
[314197833,1708067438318,-289.4002629,0.00037999,2]
[314197834,1708067438330,-1548.37635282,0.00037999,2]
[314197835,1708067438339,-3832.4,0.00037999,2]
[314197836,1708067438348,-146282.99325873,0.00038,2]
[314197837,1708067438360,-5182.57219999,0.00038,2]
[314197838,1708067438372,-2072.13744929,0.00038,2]
[314197839,1708067438384,-664.88675611,0.00038,2]
[314197840,1708067438396,-5620.34233435,0.00038,2]
[314197841,1708067438405,-470.26975192,0.00038,30]
[314197842,1708067438414,-541.99652765,0.00038093,8]
[314197843,1708067438423,-150.99,0.00038093,2]
[314197844,1708067438433,-386.52084639,0.0003819,2]
[314197845,1708067438442,-9411.23134299,0.000382,7]
[314197846,1708067438454,-2392.36310128,0.000382,7]
[314197847,1708067438473,-1465.62805132,0.000382,7]
[314197848,1708067438493,-430.7344981,0.000382,7]
[314197849,1708067438505,-1840.01178555,0.000382,7]
[314197850,1708067438520,-1030.38742629,0.000382,7]
[314197851,1708067438532,-1028.44487161,0.000382,7]
[314197852,1708067438548,-988.29503927,0.000382,7]
[314197853,1708067438559,-1889.12109269,0.000382,7]
[314197854,1708067438571,-1001.63911029,0.000382,7]
[314197855,1708067438582,-1351.69564379,0.000382,7]
[314197856,1708067438594,-1402.67223142,0.000382,7]
[314197857,1708067438606,-9805.49916001,0.000382,7]
[314197859,1708067438618,-413.19841403,0.000382,7]
[314197861,1708067438629,-381.91363408,0.000382,7]
[314197863,1708067438642,-3365.46718033,0.000382,7]
[314197865,1708067438653,-797.04011047,0.000382,7]
[314197872,1708067441137,-10000.0,0.00038,10]
[314197873,1708067441146,-61004.65730648,0.000382,7]
[314197874,1708067441155,-179.21,0.0003823,2]
[314197875,1708067441165,-215.48,0.00038303,2]
[314197876,1708067441174,-153.93,0.00038356,2]
[314197877,1708067441184,-953.44,0.00038356,15]
[314197878,1708067441193,-1000.0,0.00038359,2]
[314197879,1708067441202,-2468.60307768,0.00038362,3]
[314197880,1708067441211,-856.50818604,0.00038362,2]
[314197881,1708067441221,-235.13714478,0.00038362,2]
[314197882,1708067441234,-200.47748492,0.00038375,2]
[314197883,1708067441245,-100000.0,0.000384,7]
[314197884,1708067441254,-15420.24,0.000384,2]
[314197885,1708067441263,-538.98727663,0.00038555,2]
[314197886,1708067441273,-100000.0,0.000386,7]
[314197887,1708067441281,-165.45,0.00038655,2]
[314197888,1708067441290,-291.94517868,0.00038658,2]
[314197889,1708067441300,-409.63471122,0.00038679,11]
[314197890,1708067441311,-204.06,0.000387,2]
[314197891,1708067441321,-100000.0,0.0003875,7]
[314197892,1708067441330,-7555.51772888,0.00038783,2]
[314197893,1708067441339,-3716.75281455,0.000389,2]
[314197894,1708067441348,-17497.58697533,0.000389,7]
[314197895,1708067441358,-2821.89097005,0.000389,2]
[314197896,1708067441367,-154.62524897,0.00038908,2]
[314197897,1708067441376,-178.08569671,0.00038908,2]
[314197898,1708067441385,-189.03109604,0.00038908,12]
[314197899,1708067441394,-24291.8964439,0.00039,3]
[314197900,1708067441403,-100000.0,0.00039,7]
[314197901,1708067441412,-151.0,0.00039,7]
[314197902,1708067441422,-151.0,0.00039,7]
[314197903,1708067441431,-151.0,0.00039,7]
[314197904,1708067441440,-151.0,0.00039,7]
[314197905,1708067441450,-151.0,0.00039,7]
[314197906,1708067441460,-151.0,0.00039,7]
[314197907,1708067441469,-541.99652758,0.00039008,9]
[314197908,1708067441478,-200.47748489,0.00039231,2]
[314197909,1708067441488,-206.76,0.00039317,2]
[314197910,1708067441499,-1675.00535572,0.00039479,2]
[314197911,1708067441509,-5000.0,0.0003948,7]
[314197912,1708067441519,-500.0,0.00039485,31]
[314197913,1708067441528,-446.23966,0.00039485,31]
[314197914,1708067441538,-1000.0,0.000395,2]
[314197915,1708067441547,-192.97,0.00039501,2]
[314197916,1708067441557,-6138.2831565,0.00039579,13]
[314197917,1708067441566,-74333.2913904,0.00039579,4]
[314197918,1708067441576,-151.0,0.00039589,7]
[314197919,1708067441586,-151.0,0.00039589,7]
[314197920,1708067441595,-150.0,0.00039589,2]
[314197921,1708067441605,-164.66759993,0.00039589,7]
[314197922,1708067441615,-151.0,0.00039589,7]
[314197923,1708067441625,-151.0,0.00039589,7]
[314197924,1708067441634,-151.0,0.00039589,7]
[314197925,1708067441643,-151.0,0.00039589,7]
[314197926,1708067441653,-151.0,0.00039589,7]
[314197927,1708067441662,-688.70978124,0.0003959,30]
[314197928,1708067441671,-323.36379131,0.0003959,90]
[314197929,1708067441682,-767.34730536,0.0003959,2]
[314197930,1708067441691,-1057.83339662,0.0003959,3]
[314197931,1708067441701,-202.80738727,0.0003959,120]
[314197932,1708067441710,-1508.59599246,0.0003959,60]
[314197933,1708067441719,-19813.70341635,0.0003959,2]
[314197934,1708067441729,-310.79020907,0.0003959,120]
[314197935,1708067441738,-152.92544454,0.0003959,2]
[314197936,1708067441748,-647.12865825,0.0003959,30]
[314197937,1708067441758,-1611.23232268,0.0003959,2]
[314197938,1708067441768,-1275.7441856,0.0003959,2]
[314197939,1708067441777,-2634.04514404,0.0003959,2]
[314197940,1708067441786,-155.29598778,0.0003959,2]
[314197941,1708067441795,-1676.76898423,0.0003959,30]
[314197942,1708067441805,-154.09038755,0.0003959,31]
[314197943,1708067441814,-155.34090579,0.0003959,2]
[314197944,1708067441824,-674.31378256,0.0003959,2]
[314197945,1708067441833,-204.82545901,0.0003959,90]
[314197946,1708067441843,-744.45964733,0.0003959,15]
[314197948,1708067441852,-153.3577987,0.0003959,30]
[314197949,1708067441861,-319.48620703,0.0003959,120]
[314197950,1708067441871,-1224.56963423,0.0003959,2]
[314197951,1708067441881,-281.10631617,0.0003959,120]
[314197952,1708067441890,-10408.84717585,0.0003959,120]
[314197953,1708067441899,-528.83523956,0.0003959,2]
[314197954,1708067441908,-14520.05596386,0.0003959,4]
[314197955,1708067441917,-216.28756478,0.0003959,2]
[314197956,1708067441927,-219.90710713,0.0003959,120]
[314197957,1708067441936,-9998.54069014,0.0003959,10]
[314197958,1708067441945,-1742.67944259,0.0003959,120]
[314197959,1708067441955,-1012.68888694,0.0003959,2]
[314197960,1708067441965,-1459.58489728,0.0003959,120]
[314197961,1708067441975,-742.91222154,0.0003959,120]
[314197962,1708067441984,-162.06747569,0.0003959,30]
[314197963,1708067441994,-603.98328026,0.0003959,60]
[314197964,1708067442004,-155.44208196,0.0003959,2]
[314197965,1708067442013,-20008.10601824,0.0003959,2]
[314197966,1708067442023,-286.68197313,0.0003959,120]
[314197967,1708067442032,-1105.20309287,0.0003959,120]
[314197968,1708067442041,-151.47013554,0.0003959,30]
[314197969,1708067442050,-177.60946344,0.0003959,30]
[314197970,1708067442059,-629.27915847,0.0003959,120]
[314197971,1708067442069,-243.42012289,0.0003959,30]
[314197972,1708067442078,-52756.6915453,0.0003959,5]
[314197973,1708067442087,-155.71210622,0.0003959,30]
[314197974,1708067442096,-1923.31009777,0.0003959,120]
[314197975,1708067442106,-8739.60057729,0.0003959,10]
[314197976,1708067442120,-619.40917737,0.0003959,10]
[314197977,1708067442133,-18014.63115954,0.0003959,10]
[314197978,1708067442155,-639.14654176,0.0003959,10]
[314197979,1708067442166,-3303.94373171,0.0003959,10]
[314197980,1708067442177,-1138.50001,0.0003959,10]
[314197981,1708067442189,-342.58214124,0.0003959,10]
[314197982,1708067442200,-816.22100029,0.0003959,10]
[314197983,1708067442212,-735.43609094,0.0003959,10]
[314197984,1708067442232,-525.21345931,0.0003959,10]
[314197985,1708067442243,-838.48045101,0.0003959,10]
[314197986,1708067442256,-2814.42447915,0.0003959,10]
[314197987,1708067442269,-543.43566378,0.0003959,10]
[314197988,1708067442280,-353.65999998,0.0003959,10]
[314197989,1708067442292,-282.45310013,0.0003959,10]
[314197990,1708067442305,-5637.8687285,0.0003959,10]
[314198001,1708067443256,-287.51296059,0.0003959,10]
[314198002,1708067443265,-206.97169918,0.0003959,120]
[314198003,1708067443276,-166.25473245,0.0003959,2]
[314198004,1708067443285,-440.57807178,0.0003959,4]
[314198005,1708067443298,-543.33974753,0.0003959,4]
[314198006,1708067443311,-1235.08218069,0.0003959,4]
[314198007,1708067443320,-190.73745597,0.0003965,2]
[314198008,1708067443373,-107.77254403,0.0003965,2]
[314198009,1708067443382,-9144.5028033,0.00039734,3]
[314198010,1708067443432,-855.4971967,0.00039734,3]
[314198011,1708067443441,-2157.82207492,0.00039759,2]
[314198012,1708067443452,-1133.78213866,0.00039759,2]
[314198013,1708067443473,-2081.83587648,0.00039759,2]
[314198014,1708067443491,-5619.88566126,0.00039759,2]
[314198015,1708067443552,-653.03474555,0.00039759,2]
[314198016,1708067443563,-6799.63950313,0.00039759,2]
[314198017,1708067443572,-291.94517868,0.00039775,2]
[314198018,1708067443582,-3000.0,0.000398,41]
[314198019,1708067443592,-152.4,0.000398,3]
[314198020,1708067443602,-152.4,0.000398,3]
[314198021,1708067443611,-61.65116254,0.000398,3]
[314198032,1708067446255,-90.74883746,0.000398,3]
[314198033,1708067446266,-152.4,0.000398,3]
[314198034,1708067446276,-152.4,0.000398,3]
[314198035,1708067446286,-152.4,0.000398,3]
[314198036,1708067446296,-152.4,0.000398,3]
[314198037,1708067446307,-3134.284102,0.0003981,41]
[314198038,1708067446317,-1165.36706054,0.0003988,2]
[314198039,1708067446330,-4073.19642379,0.0003988,2]
[314198040,1708067446341,-13271.11864892,0.0003988,2]
[314198041,1708067446352,-1996.76931726,0.0003988,2]
[314198042,1708067446364,-1500.0,0.0003988,2]
[314198043,1708067446491,-635.38561209,0.0003988,2]
[314198044,1708067446504,-2867.54097119,0.0003988,2]
[314198045,1708067446516,-750.53079597,0.0003988,2]
[314198046,1708067446525,-151.0,0.0003988,7]
[314198047,1708067446535,-541.99652758,0.00039924,9]
[314198048,1708067446544,-2058.45970713,0.00039943,2]
[314198049,1708067446561,-1596.38096813,0.00039943,2]
[314198050,1708067447667,-3900.67705362,0.00039943,2]
[314198051,1708067447677,-215.48,0.00039947,2]
[314198052,1708067447687,-386.41822911,0.00039999,31]
[314198053,1708067447696,-2779.66160561,0.0004,7]
[314198054,1708067447706,-570.03931749,0.0004,2]
[314198055,1708067447716,-5066.0,0.0004,8]
[314198056,1708067447725,-1000.0,0.0004,2]
[314198057,1708067447734,-217.34,0.0004,2]
[314198058,1708067447744,-6138.28315639,0.00040026,13]
[314198059,1708067447754,-200.47748489,0.00040088,2]
[314198060,1708067447764,-6138.28315639,0.00040474,14]
[314198061,1708067447783,-152.4,0.000405,4]
[314198062,1708067447794,-152.4,0.000405,4]
[314198063,1708067447804,-152.4,0.000405,4]
[314198064,1708067447813,-152.4,0.000405,4]
[314198065,1708067447823,-152.4,0.000405,4]
[314198066,1708067447832,-152.4,0.000405,4]
[314198068,1708067447842,-152.4,0.000405,4]
[314198070,1708067447850,-316.03,0.00040543,2]
[314198071,1708067447860,-434.68,0.00040547,2]
[314198072,1708067447870,-538.98727662,0.00040558,2]
[314198073,1708067447879,-200.0,0.00040825,10]
[314198074,1708067447888,-541.99652758,0.00040839,10]
[314198075,1708067447898,-291.94517868,0.00040892,3]
[314198076,1708067447907,-150.0,0.000409,2]
[314198077,1708067447917,-150.0,0.000409,2]
[314198078,1708067447926,-150.0,0.000409,2]
[314198079,1708067447935,-2835.0,0.00040918,2]
[314198080,1708067447945,-242.4729858,0.00040918,2]
[314198081,1708067447959,-988.5270142,0.00040918,2]
[314198082,1708067447969,-454.0,0.00040918,2]
[314198083,1708067447979,-6138.28315639,0.00040921,15]
[314198084,1708067447988,-200.47748489,0.00040944,2]
[314198085,1708067447998,-8127.8632224,0.0004097,6]
[314198086,1708067448011,-405.81528365,0.0004097,6]
[314198087,1708067448024,-2173.54056389,0.0004097,6]
[314198089,1708067715727,1000.0,0.00025,7]
[314198092,1708067942211,-500.0,0.000246,2]
[314198093,1708067942232,-500.0,0.000247,4]
[314198094,1708067942253,-500.0,0.000248,2]
[314198095,1708067942278,-500.0,0.000248,3]
[314198096,1708067942299,-155.0,0.00024898,2]
[314198097,1708067942321,-150.0,0.00024899,2]
[314198098,1708067968191,154.03343794,0.00024804,2]
[314198101,1708068024581,-5110.96656206,0.000249,2]
[314198104,1708068213816,2902.894,0.00024402,4]
[314198105,1708068213942,2902.895,0.00024402,4]
[314198106,1708068214006,2902.894,0.00024402,4]
[314198107,1708068214071,2902.894,0.00024402,4]
[314198108,1708068214102,2902.895,0.00024402,4]
[314198111,1708068412814,1135.0,0.00023,2]
[314198125,1708068631536,-167.662,0.00024651,4]
[314198126,1708068631547,-167.662,0.00024651,4]
[314198127,1708068631556,-28.03973079,0.00024899,2]
[314198128,1708068631596,-643.46267268,0.00024899,2]
[314198129,1708068631650,-3815.10117222,0.00024899,2]
[314198130,1708068631662,-385.18321266,0.00024899,2]
[314198131,1708068631672,-1014.92573439,0.000249,2]
[314198132,1708068631683,-2279.55020355,0.000249,2]
[314198133,1708068631693,-800.0,0.00024904,2]
[314198134,1708068631702,-154.03343787,0.00026219,2]
[314198135,1708068631711,-154.03343787,0.00027635,2]
[314198136,1708068631720,-154.03343787,0.0002905,2]
[314198137,1708068631729,-150.0,0.00030126,2]
[314198138,1708068631738,-150.0,0.00030126,2]
[314198139,1708068631748,-230.98678725,0.00030127,4]
[314198140,1708068631758,-910.27,0.00030128,2]
[314198141,1708068631767,-6145.92,0.00030128,2]
[314198142,1708068631776,-154.03343787,0.00030465,2]
[314198143,1708068631786,-1590.63,0.00030465,2]
[314198144,1708068631795,-499.99,0.00030465,2]
[314198145,1708068631805,-7192.31,0.00030465,2]
[314198146,1708068631814,-499.99,0.00030465,2]
[314198147,1708068631823,-399.98,0.00031376,2]
[314198148,1708068631833,-154.03343787,0.0003188,2]
[314198149,1708068631842,-2774.23,0.0003188,2]
[314198150,1708068631851,-1000.0,0.00032935,2]
[314198151,1708068631861,-250.0,0.00032983,2]
[314198152,1708068631872,-9205.93,0.00033045,2]
[314198153,1708068631881,-200.0,0.00033057,2]
[314198154,1708068631891,-260.18,0.00033057,2]